bitfinex-derivatives/quotes_ETHF0:USTF0_20251006
["timestamp","ask_amount","ask_price","bid_price","bid_amount"]
[1759771229121,0.38154,4715.4,4715.1,0.4487]
[1759771229326,0.38154,4715.3,4715.0,0.185]
[1759771229521,0.38155,4715.2,4715.1,0.4487]
[1759771229727,0.38154,4715.3,4715.1,0.4487]
[1759771229927,0.38155,4715.2,4715.1,0.4487]
[1759771230328,0.38153,4715.4,4715.1,0.4487]
[1759771230525,0.38153,4715.4,4715.0,0.185]
[1759771230726,0.38156,4715.2,4715.0,0.185]
[1759771230922,0.38156,4715.2,4715.1,0.4487]
[1759771231333,0.00185543,4715.8,4715.1,0.4487]
[1759771231524,0.00185543,4715.8,4715.0,0.6337]
[1759771231525,0.38156,4715.1,4715.0,0.6337]
[1759771231727,0.38159,4714.7,4714.6,0.4487]
[1759771231927,0.38157,4714.9,4714.6,0.4487]
[1759771232122,0.38158,4714.8,4714.6,0.4487]
[1759771232332,0.3816,4714.6,4714.5,0.185]
[1759771232627,0.214,4715.1,4714.6,0.4487]
[1759771232836,0.38156,4715.1,4715.0,0.185]
[1759771233134,0.38156,4715.1,4715.0,0.6337]
[1759771234435,0.82257557,4715.1,4715.0,0.6337]
[1759771235437,0.3816,4714.6,4714.5,0.6337]
[1759771236234,0.82261557,4714.6,4714.5,0.6337]
[1759771237237,0.38163,4714.2,4714.1,0.4723]
[1759771237431,0.44101557,4714.5,4714.1,0.4723]
[1759771237629,0.82263557,4714.4,4714.1,0.4723]
[1759771237828,0.38164,4714.2,4714.1,0.4723]
[1759771238035,0.44101557,4714.2,4714.1,0.4723]
[1759771240530,0.38164,4714.1,4714.0,0.185]
[1759771240733,0.38167,4713.7,4713.5,0.185]
[1759771240941,0.44101557,4713.6,4713.5,0.6573]
[1759771241744,0.44310371,4713.6,4713.5,0.6573]
[1759771242436,0.38169,4713.5,4713.1,0.4723]
[1759771242637,0.44310371,4713.4,4713.1,0.4723]
[1759771242839,0.38171,4713.2,4713.0,0.185]
[1759771243039,0.44310371,4713.1,4713.0,0.185]
[1759771243334,0.38173,4713.0,4712.9,0.3912]
[1759771243640,0.82483371,4713.0,4712.9,0.3912]
[1759771243839,3.62570678,4713.0,4712.9,0.3912]
[1759771244042,3.83970678,4713.0,4712.9,0.8635]
[1759771244640,3.83970678,4713.0,4712.9,0.3912]
[1759771245245,0.38174,4712.8,4712.6,0.4723]
[1759771245538,3.35792328,4712.8,4712.6,0.4723]
[1759771245742,5.44310371,4712.7,4712.6,0.30117115]
[1759771246047,1.03885371,4712.7,4712.5,0.1922]
[1759771246238,0.44310371,4712.6,4712.5,0.1922]
[1759771246544,0.44310371,4712.6,4712.5,0.66665882]
[1759771246545,0.65710371,4712.6,4712.5,0.66665882]
[1759771247539,0.65710371,4712.6,4712.5,0.00215882]
[1759771247842,3.35470099,4712.6,4712.5,0.00215882]
[1759771249245,8.35470099,4712.6,4712.5,0.00215882]
[1759771250041,3.14070099,4712.6,4712.5,0.65785882]
[1759771250237,0.44310371,4712.6,4712.5,0.65785882]
[1759771250435,0.65710371,4712.6,4712.5,0.65785882]
[1759771250842,3.42389236,4712.6,4712.5,0.65785882]
[1759771251650,3.20989236,4712.6,4712.5,0.65785882]
[1759771251844,3.42389236,4712.6,4712.5,0.65785882]
[1759771252044,3.42389236,4712.6,4712.5,0.00215882]
[1759771252246,3.42389236,4712.6,4712.5,0.65785882]
[1759771253748,3.42389236,4712.6,4712.5,0.00215882]
[1759771253951,8.42389236,4712.6,4712.5,0.00215882]
[1759771254140,8.42389236,4712.6,4712.5,8.82e-06]
[1759771254743,0.38179,4712.2,4712.1,0.50144882]
[1759771254947,0.65710371,4712.2,4711.0,0.1903]
[1759771255251,0.65710371,4712.2,4710.5,0.1903]
[1759771255252,0.38192,4710.6,4710.5,0.1903]
[1759771255448,0.59592,4710.6,4710.5,0.1903]
[1759771255847,0.59761461,4710.6,4710.5,0.19193688]
[1759771256265,3.30223235,4710.6,4710.5,0.19193688]
[1759771257043,8.74348377,4710.6,4710.5,0.65733688]
[1759771257251,8.30223235,4710.6,4710.5,0.65733688]
[1759771257652,0.38361461,4710.6,4710.5,0.65733688]
[1759771257953,0.38361461,4710.6,4710.5,5.65733688]
[1759771257954,0.00169461,4710.6,4710.5,5.65733688]
[1759771258149,0.38176,4712.6,4712.5,0.1903]
[1759771258351,0.84168273,4712.6,4712.5,0.6557]
[1759771258555,3.53599792,4712.6,4712.5,0.6557]
[1759771258757,3.09507519,4712.6,4712.5,0.6557]
[1759771259255,3.09678497,4712.6,4712.5,0.6557]
[1759771260251,0.00170978,4712.6,4712.5,5.6557]
[1759771260556,0.3816,4714.6,4714.5,0.1903]
[1759771260953,3.32996526,4714.6,4714.5,0.1903]
[1759771261148,3.32996526,4714.6,4714.5,0.6557]
[1759771261355,3.77096364,4714.6,4714.5,0.6557]
[1759771261656,3.33204333,4714.6,4714.5,0.6575009]
[1759771261848,3.77310028,4714.6,4714.5,0.6575009]
[1759771262160,3.33204333,4714.6,4714.5,0.6575009]
[1759771262455,3.11804333,4714.6,4714.5,0.6575009]
[1759771262651,3.33204333,4714.6,4714.5,0.6575009]
[1759771262858,3.33204333,4714.6,4714.5,0.1921009]
[1759771262859,8.55921176,4714.6,4714.5,0.1921009]
[1759771263157,8.77321176,4714.6,4714.5,9e-07]
[1759771265155,8.55921176,4714.6,4714.5,9e-07]
[1759771265355,8.77321176,4714.6,4714.5,9e-07]
[1759771265861,8.55921176,4714.6,4714.5,9e-07]
[1759771266060,3.55921176,4714.6,4714.5,0.6557009]
[1759771266262,3.77321176,4714.6,4714.5,0.6557009]
[1759771266455,8.77321176,4714.6,4714.5,9e-07]
[1759771266655,8.55921176,4714.6,4714.5,9e-07]
[1759771266950,3.55921176,4714.6,4714.5,0.6557009]
[1759771267153,3.77321176,4714.6,4714.5,0.6557009]
[1759771267349,3.77321176,4714.6,4714.5,9e-07]
[1759771267550,0.38164,4714.1,4714.0,0.6557]
[1759771267758,0.59564,4714.1,4714.0,0.6557]
[1759771267951,3.54602414,4714.1,4714.0,0.6557]
[1759771268156,3.76002414,4714.1,4714.0,0.6557]
[1759771268358,3.76002414,4714.1,4714.0,0.65759624]
[1759771268959,3.54602414,4714.1,4714.0,0.65759624]
[1759771269360,3.76002414,4714.1,4714.0,0.65759624]
[1759771269959,3.54602414,4714.1,4714.0,0.65759624]
[1759771270156,0.82280843,4714.1,4714.0,5.65759624]
[1759771270460,0.00207807,4714.6,4714.5,0.6557]
[1759771270665,0.00207807,4714.6,4714.4,0.38161]
[1759771270666,0.95362,4716.5,4716.1,0.4654]
[1759771270859,0.38147,4716.2,4716.1,0.46108986]
[1759771271058,0.59547,4716.2,4716.1,0.46108986]
[1759771271265,3.77831596,4716.2,4716.1,0.46108986]
[1759771271761,0.72780345,4717.5,4716.5,0.1903]
[1759771271958,0.38132,4718.0,4717.5,0.1903]
[1759771272159,0.38139,4717.1,4717.0,0.1903]
[1759771272359,0.38142,4716.8,4716.5,0.1903]
[1759771272559,0.3814,4717.0,4716.5,0.1903]
[1759771272759,0.95324,4718.4,4717.0,0.1903]
[1759771272955,2.7501245,4717.7,4717.5,0.1903]
[1759771273162,0.38135,4717.7,4717.6,0.4654]
[1759771273670,0.02376657,4717.9,4717.5,0.1903]
[1759771273863,0.02376657,4717.9,4717.6,0.4654]
[1759771274364,0.11976657,4717.9,4717.6,0.4654]
[1759771274664,0.02376657,4717.9,4717.6,0.4654]
[1759771275162,0.02376657,4717.9,4717.5,0.1903]
[1759771275371,0.02376657,4717.9,4717.6,0.4654]
[1759771275867,0.02376657,4717.9,4717.8,0.4654]
[1759771276763,0.38134,4717.8,4717.5,0.1903]
[1759771277063,2.78305124,4717.7,4717.6,0.4654]
[1759771277368,0.214,4717.7,4717.1,0.4654]
[1759771277568,0.38141,4717.0,4716.5,0.19295404]
[1759771277766,0.38141,4717.0,4716.6,0.4654]
[1759771277968,2.78305124,4717.6,4716.6,0.4843]
[1759771278161,0.49946657,4717.9,4716.5,0.19295404]
[1759771278162,0.95343,4717.4,4716.5,0.19295404]
[1759771278368,0.38143,4716.7,4716.6,0.4843]
[1759771279366,0.5087,4716.6,4716.5,0.00265404]
[1759771279565,0.7227,4716.6,4716.5,0.00265404]
[1759771279760,3.4433714,4716.6,4716.5,0.00265404]
[1759771280363,0.214,4716.6,4716.5,0.00265404]
[1759771280567,3.32258075,4716.6,4716.5,0.00265404]
[1759771280768,3.53658075,4716.6,4716.5,0.00265404]
[1759771280958,3.32258075,4716.6,4716.5,0.00265404]
[1759771281163,3.53658075,4716.6,4716.5,0.00265404]
[1759771281464,8.53658075,4716.6,4716.5,0.00265404]
[1759771281864,3.32258075,4716.6,4716.5,0.00265404]
[1759771282170,0.38143,4716.7,4716.6,0.4843]
[1759771282768,0.38139,4717.2,4717.1,0.4843]
[1759771282970,0.59539,4717.2,4717.1,0.4843]
[1759771283364,0.38143,4716.6,4716.5,0.68135404]
[1759771283666,3.32377335,4717.6,4716.5,0.68135404]
[1759771283667,0.5087,4717.6,4716.6,0.4843]
[1759771284063,0.38143,4716.6,4716.5,0.19705404]
[1759771284462,0.38143,4716.6,4716.5,0.00265404]
[1759771284667,3.10184461,4716.6,4716.5,0.48695404]
[1759771284867,0.5087,4718.3,4716.6,0.4843]
[1759771285171,0.38139,4717.2,4716.6,0.4843]
[1759771285366,3.00545206,4717.8,4716.5,0.19705404]
[1759771285367,0.38143,4716.7,4716.5,0.19705404]
[1759771285668,0.38142,4716.9,4716.6,0.4843]
[1759771285865,0.02376657,4717.9,4716.6,0.4843]
[1759771286275,0.05576657,4717.9,4716.5,0.19705404]
[1759771286469,0.38137,4717.4,4716.6,0.86573]
[1759771286770,0.05576657,4717.9,4716.7,0.38142]
[1759771286969,0.05576657,4717.9,4716.5,0.19705404]
[1759771286970,0.02376657,4717.9,4716.9,0.38141]
[1759771287171,0.38136,4717.6,4716.8,0.4843]
[1759771287359,0.02376657,4717.9,4716.8,0.38142]
[1759771287360,0.38136,4717.5,4716.8,0.38142]
[1759771287563,0.02376657,4717.9,4717.6,0.4843]
[1759771287564,0.38135,4717.7,4717.6,0.4843]
[1759771289667,0.38136,4717.5,4717.0,0.1944]
[1759771289865,0.38134,4717.8,4717.1,0.4843]
[1759771290071,0.65846657,4717.9,4717.1,0.4843]
[1759771290471,0.53246657,4717.9,4717.1,0.4843]
[1759771290673,0.02376657,4717.9,4717.1,0.4843]
[1759771290974,0.5087,4717.8,4717.1,0.4843]
[1759771291274,0.38137,4717.4,4717.1,0.4843]
[1759771291764,0.5087,4717.7,4717.1,0.4843]
[1759771292370,0.38138,4717.3,4717.0,0.1944]
[1759771292572,0.38137,4717.4,4717.1,0.4843]
[1759771292770,0.95338,4717.7,4716.9,0.4843]
[1759771292967,0.5087,4717.4,4716.7,0.86572]
[1759771293167,0.38136,4717.5,4717.1,0.4843]
[1759771293470,0.02376657,4717.9,4717.1,6.43779]
[1759771293669,0.6507,4719.5,4717.5,0.5828]
[1759771293972,0.38126,4718.8,4718.2,0.3813]
[1759771294173,0.5087,4719.2,4717.7,0.4843]
[1759771294174,0.38124,4719.0,4717.7,0.4843]
[1759771294374,0.38126,4718.8,4718.1,0.38131]
[1759771294568,0.5087,4719.9,4718.5,0.0972]
[1759771294770,0.43796713,4719.8,4719.3,0.38121]
[1759771294964,0.43792412,4719.7,4718.6,0.4843]
[1759771295166,0.43793031,4719.6,4718.6,0.4843]
[1759771295365,0.38123,4719.2,4718.6,0.4843]
[1759771295571,0.38124,4719.1,4718.6,0.4843]
[1759771295876,0.43610008,4719.0,4718.1,0.4863]
[1759771296071,0.43610008,4718.9,4718.1,0.4863]
[1759771296279,0.5108752,4719.2,4717.5,0.0985]
[1759771296280,0.5091,4718.7,4717.6,41.2863]
[1759771296475,0.3813,4718.4,4717.6,41.2863]
[1759771296672,0.94520008,4718.3,4717.6,0.4863]
[1759771296868,0.43610008,4718.2,4717.6,0.86765]
[1759771297070,0.5091,4718.9,4717.9,0.38132]
[1759771297269,0.43633943,4718.8,4718.1,0.38131]
[1759771297469,0.43633943,4718.7,4717.5,1.05191]
[1759771297781,0.19,4719.5,4717.7,0.4863]
[1759771297782,0.94543943,4718.6,4717.7,0.4863]
[1759771297975,0.43633943,4718.5,4717.9,0.38133]
[1759771298185,0.43633943,4718.5,4717.9,0.38132]
[1759771298477,0.43633943,4718.5,4717.7,0.4863]
[1759771298784,0.38129,4718.4,4717.7,0.4863]
[1759771299080,0.43633943,4718.3,4717.7,0.4863]
[1759771299273,0.43633943,4718.3,4717.7,0.86764]
[1759771299479,0.5091,4718.1,4717.7,0.4863]
[1759771299681,0.43633943,4718.0,4717.3,0.214]
[1759771300379,0.43633943,4717.9,4717.7,0.4863]
[1759771300586,0.19,4718.5,4717.7,0.4863]
[1759771300587,0.43633943,4717.8,4717.7,0.4863]
[1759771300880,0.5112752,4719.2,4717.8,0.4863]
[1759771301175,0.5112752,4719.2,4718.6,0.86757]
[1759771301176,0.0021752,4719.2,4718.6,0.86757]
[1759771301383,0.0021752,4719.2,4718.6,0.4863]
[1759771301974,0.38125,4719.0,4718.6,0.4863]
[1759771302176,0.5091,4718.9,4718.1,0.4863]
[1759771302374,0.0021752,4719.2,4718.1,0.4863]
[1759771302575,0.0021752,4719.2,4718.5,0.86758]
[1759771302878,0.0021752,4719.2,4718.5,0.4863]
[1759771303484,0.0021752,4719.2,4718.6,0.38127]
[1759771303785,0.0021752,4719.2,4719.0,0.57564]
[1759771303979,0.0021752,4719.2,4719.1,0.4863]
[1759771304782,0.0021752,4719.2,4719.1,5.4863]
[1759771304976,0.013,4720.6,4719.1,5.0]
[1759771305177,1.14281,4720.5,4719.2,0.5022]
[1759771305382,0.19,4720.5,4719.2,0.5022]
[1759771305576,0.38118,4719.8,4719.3,0.5022]
[1759771305882,0.38122,4719.3,4719.0,0.1944]
[1759771306183,0.3830107,4719.3,4719.1,0.5022]
[1759771306376,0.0017907,4719.3,4719.1,0.5022]
[1759771306677,0.0017907,4719.3,4718.8,0.38125]
[1759771306877,0.0017907,4719.3,4718.5,0.0972]
[1759771306878,0.0017907,4719.3,4719.0,0.2015]
[1759771307181,0.0017907,4719.3,4719.2,0.38122]
[1759771307377,0.0017907,4719.3,4719.2,0.5022]
[1759771307778,0.3830107,4719.3,4718.6,0.5022]
[1759771307977,0.38123,4719.2,4718.6,0.5022]
[1759771308178,0.38125,4718.9,4718.0,41.27752]
[1759771308382,0.38124,4719.1,4718.1,0.4666]
[1759771308683,0.38124,4719.1,4718.2,0.4666]
[1759771309078,0.6833,4719.0,4718.2,0.4666]
[1759771309377,0.38131,4718.2,4717.6,0.4666]
[1759771309975,0.4946,4718.3,4717.6,0.4666]
[1759771310380,0.4946,4718.3,4717.2,0.5088]
[1759771310573,0.95327,4718.2,4717.2,0.5088]
[1759771310773,0.3446,4717.9,4717.2,0.5088]
[1759771310979,0.38129,4718.4,4717.3,0.4666]
[1759771311175,2.69753569,4718.4,4717.5,0.1911]
[1759771311374,0.38132,4718.0,4717.5,0.1911]
[1759771311578,0.38133,4717.9,4717.6,0.4666]
[1759771311780,0.38134,4717.8,4717.6,0.4666]
[1759771311985,0.214,4717.9,4717.3,0.4666]
[1759771312176,1.49405565,4719.2,4717.6,0.4666]
[1759771312483,0.38128,4718.5,4717.6,0.4666]
[1759771312880,0.43749245,4718.4,4717.8,0.38133]
[1759771313081,0.43749245,4718.3,4718.0,0.1911]
[1759771313387,0.43760359,4718.2,4718.1,0.4666]
[1759771314392,0.43779306,4718.2,4718.1,0.4666]
[1759771314582,0.43779306,4718.6,4718.1,0.4666]
[1759771314988,0.43779306,4718.5,4718.1,0.4666]
[1759771315179,0.43779306,4718.4,4718.1,0.4666]
[1759771315486,0.43779306,4718.3,4718.0,0.1911]
[1759771315783,0.43779306,4718.2,4717.6,0.4666]
[1759771315991,0.43779306,4718.1,4717.5,0.1911]
[1759771316191,0.81911306,4718.1,4717.6,0.4666]
[1759771316386,0.38136,4717.6,4717.2,0.5088]
[1759771316586,0.43800668,4717.5,4717.4,0.4666]
[1759771317783,0.3813,4718.3,4717.4,0.4666]
[1759771318087,0.38132,4718.0,4717.2,0.5088]
[1759771318289,1.31390678,4717.9,4717.2,0.5088]
[1759771318488,0.43797678,4717.8,4717.2,0.5088]
[1759771319288,0.43797678,4717.8,4717.2,0.9754]
[1759771319488,0.4946,4717.3,4717.2,0.5088]
[1759771319687,0.93257678,4717.3,4717.2,0.5088]
[1759771320280,0.93257678,4717.3,4717.2,0.42873166]
[1759771320481,0.3814,4717.1,4716.5,0.00265404]
[1759771320788,0.4946,4716.9,4716.6,0.4666]
[1759771320993,0.4946,4718.0,4716.6,0.4666]
[1759771321291,0.4946,4717.8,4716.6,0.4666]
[1759771321494,0.38142,4716.8,4716.6,0.4666]
[1759771321689,0.38142,4716.8,4716.5,0.19375404]
[1759771321690,0.87603,4716.6,4716.5,0.00265404]
[1759771321893,1.31413367,4716.6,4716.5,0.00265404]
[1759771322288,0.93270367,4716.6,4716.5,0.00265404]
[1759771322891,0.43810367,4716.6,4716.5,0.46925404]
[1759771323089,0.4946,4717.3,4716.5,0.66035404]
[1759771323290,0.38139,4717.1,4716.5,0.46925404]
[1759771323490,0.4946,4716.9,4716.5,0.46925404]
[1759771323693,0.93225304,4716.8,4716.6,0.4666]
[1759771323888,0.81908304,4716.7,4716.6,0.4666]
[1759771324086,1.31368304,4716.7,4716.5,0.00265404]
[1759771324285,0.93225304,4716.6,4716.5,0.00265404]
[1759771324490,0.4946,4716.6,4716.5,0.00265404]
[1759771325096,0.93198404,4716.6,4716.5,0.00265404]
[1759771325396,0.93109293,4716.6,4716.5,0.00265404]
[1759771325587,5.93109293,4716.6,4716.5,0.00265404]
[1759771325784,0.38152,4715.6,4715.1,0.4666]
[1759771325990,0.8761,4715.8,4715.0,0.6577]
[1759771326188,0.4946,4716.4,4715.1,0.4666]
[1759771326390,0.4946,4716.9,4715.3,0.4666]
[1759771326586,0.87601,4716.9,4716.1,0.4666]
[1759771326785,0.5795225,4716.9,4716.1,0.4692474]
[1759771326999,0.4965225,4716.9,4716.4,0.38145]
[1759771327191,0.0019225,4716.9,4716.5,0.57254]
[1759771327390,0.0019225,4716.9,4716.6,0.4666]
[1759771327894,0.0019225,4716.9,4716.5,0.6462]
[1759771328287,0.3833325,4716.9,4716.6,0.4666]
[1759771328488,1.49405565,4719.1,4717.0,0.9535]
[1759771328693,0.43592293,4719.3,4718.1,0.4666]
[1759771328885,0.87581,4719.4,4718.1,0.4666]
[1759771329089,0.4946,4719.4,4718.1,0.4666]
[1759771329289,0.4946,4719.4,4718.5,0.1911]
[1759771329495,0.4946,4719.4,4718.6,0.84787]
[1759771329496,0.00166506,4719.4,4718.6,0.84787]
[1759771329791,0.00166506,4719.4,4718.6,0.4666]
[1759771329992,0.00166506,4719.4,4719.0,0.1911]
[1759771330287,0.00166506,4719.4,4719.1,0.4666]
[1759771330490,0.00166506,4719.4,4719.0,0.1911]
[1759771330687,0.00166506,4719.4,4719.1,0.4666]
[1759771331292,0.00166506,4719.4,4719.2,0.4666]
[1759771332896,0.00166506,4719.4,4719.0,0.1911]
[1759771333096,0.00166506,4719.4,4719.1,0.4666]
[1759771333498,0.00166506,4719.4,4719.0,0.1911]
[1759771334193,0.00166506,4719.4,4719.1,0.4666]
[1759771334596,0.00166506,4719.4,4719.0,0.1911]
[1759771334797,0.00166506,4719.4,4719.1,0.4666]
[1759771335098,0.00166506,4719.4,4719.0,0.1911]
[1759771335291,0.4370068,4719.3,4718.6,0.4666]
[1759771335492,0.4370429,4719.2,4718.6,0.4666]
[1759771335697,0.4370429,4719.1,4719.0,0.6577]
[1759771336309,0.87582,4719.3,4719.1,0.4666]
[1759771336504,0.43702768,4719.2,4719.1,0.4666]
[1759771336696,0.43702768,4719.2,4718.6,0.4666]
[1759771336896,0.81826768,4719.1,4718.5,0.6577]
[1759771337100,0.43702768,4719.0,4718.6,0.4666]
[1759771337299,0.43707812,4718.9,4718.8,0.4666]
[1759771337496,0.00166506,4719.4,4718.8,0.84785]
[1759771337799,0.00166506,4719.4,4719.1,0.4666]
[1759771338007,0.00166506,4719.4,4719.1,0.5013]
[1759771338200,0.00166506,4719.4,4719.0,0.1911]
[1759771338406,0.00166506,4719.4,4719.1,0.88253]
[1759771338606,0.00166506,4719.4,4719.0,0.1911]
[1759771338799,0.00166506,4719.4,4719.1,0.5013]
[1759771339000,0.43700707,4719.3,4719.0,0.1911]
[1759771339206,0.43700707,4719.2,4719.1,0.5013]
[1759771341308,0.43700707,4719.2,4718.6,0.214]
[1759771341603,0.43700707,4719.1,4718.7,0.5013]
[1759771341809,0.43700707,4719.0,4718.6,0.214]
[1759771342007,0.47526506,4719.4,4718.7,0.5013]
[1759771342204,0.4736,4719.0,4718.7,0.5013]
[1759771342409,0.3813,4718.3,4717.5,0.1911]
[1759771342609,0.81822168,4718.2,4717.5,0.1911]
[1759771342808,0.43691168,4718.1,4717.5,0.1911]
[1759771343009,0.43691168,4718.1,4718.0,0.6846]
[1759771343206,0.38125,4718.9,4718.0,0.1833]
[1759771343410,0.4736,4719.0,4718.0,0.1833]
[1759771343411,0.43695177,4718.8,4718.2,0.38131]
[1759771343713,0.43695177,4718.7,4718.1,0.5013]
[1759771343906,0.43695177,4718.6,4718.2,0.3813]
[1759771344105,0.4736,4720.1,4719.0,0.1833]
[1759771344500,0.4736,4720.1,4719.1,0.5013]
[1759771344804,0.4736,4720.1,4719.1,0.38123]
[1759771344998,0.4736,4720.1,4719.3,0.5013]
[1759771345210,0.38116,4720.0,4719.3,0.5013]
[1759771345407,0.38118,4719.8,4719.3,0.5013]
[1759771345608,0.3812,4719.5,4719.3,0.5013]
[1759771345911,0.85479,4719.7,4719.3,0.5013]
[1759771346316,0.1633,4720.5,4719.3,0.5013]
[1759771346612,0.38118,4719.8,4719.3,0.5013]
[1759771346812,0.85479,4719.7,4719.3,0.5013]
[1759771347111,0.38115,4720.1,4719.3,0.5013]
[1759771347306,0.38113,4720.4,4719.3,0.5013]
[1759771347512,0.214,4720.4,4719.3,0.5013]
[1759771347810,0.38115,4720.2,4719.3,0.5013]
[1759771348011,0.214,4720.4,4719.3,0.5013]
[1759771348414,0.4736,4720.6,4719.3,0.5013]
[1759771348611,0.214,4720.4,4719.3,0.5013]
[1759771348813,0.38117,4719.9,4719.3,0.5013]
[1759771349211,0.4736,4720.1,4719.3,0.5013]
[1759771349410,0.38117,4719.9,4719.3,0.5013]
[1759771349711,0.4736,4719.8,4718.7,0.5013]
[1759771349911,0.38287506,4719.4,4718.7,0.5013]
[1759771350213,0.00166506,4719.4,4718.7,0.88256]
[1759771350410,0.00166506,4719.4,4718.8,0.5013]
[1759771350814,0.00166506,4719.4,4719.0,0.1833]
[1759771351106,0.00166506,4719.4,4719.1,0.5013]
[1759771351911,0.00166506,4719.4,4719.0,0.1833]
[1759771352117,0.00166506,4719.4,4719.3,0.5013]
[1759771352612,0.00166506,4719.4,4719.2,0.5508]
[1759771352613,0.85482,4719.3,4719.2,1e-08]
[1759771352808,1.90631,4718.8,4716.7,0.5013]
[1759771353007,0.4736,4717.9,4716.7,0.5013]
[1759771353313,1.42676,4718.8,4716.6,0.6163]
[1759771353515,0.4736,4718.6,4717.5,0.1833]
[1759771353718,0.4736,4718.6,4717.6,0.5013]
[1759771354118,0.4736,4718.6,4717.5,0.1833]
[1759771354119,0.38125,4719.0,4717.7,0.5013]
[1759771354312,0.43898858,4718.9,4717.6,0.5013]
[1759771354511,0.43898858,4718.9,4717.5,0.1833]
[1759771354512,0.43898858,4718.8,4718.2,0.5013]
[1759771354713,0.4736,4719.1,4718.2,0.5013]
[1759771354914,0.4736,4718.6,4717.8,0.9965]
[1759771355114,0.60255778,4718.5,4717.8,0.9965]
[1759771355319,0.38132,4718.0,4717.8,0.9965]
[1759771355514,0.38132,4718.1,4717.8,0.4952]
[1759771355715,0.8209473,4718.0,4717.8,0.4952]
[1759771356021,0.4948,4719.2,4718.1,0.4721]
[1759771356218,0.4948,4719.0,4718.1,0.4721]
[1759771356411,0.44002473,4718.9,4718.1,0.4721]
[1759771356617,0.82128473,4718.8,4718.1,0.4721]
[1759771356821,0.44002473,4718.7,4718.1,0.4721]
[1759771357018,0.38126,4718.8,4718.1,0.4721]
[1759771357322,0.44002064,4718.7,4718.1,0.4721]
[1759771357522,0.4948,4719.0,4718.1,0.4721]
[1759771357722,0.44030465,4718.9,4718.1,0.4721]
[1759771358022,0.44030465,4718.8,4718.2,0.4721]
[1759771358323,0.44030465,4718.7,4718.1,0.4721]
[1759771358619,0.44030465,4718.6,4718.5,0.1846]
[1759771358918,0.44030465,4719.3,4718.5,0.6567]
[1759771359117,0.44030465,4719.3,4718.6,0.4721]
[1759771359320,0.44030465,4719.3,4718.7,0.38126]
[1759771359523,0.44030465,4719.3,4718.8,0.4721]
[1759771359720,0.44030465,4719.3,4718.6,0.4721]
[1759771360523,0.44030465,4719.3,4719.0,0.1846]
[1759771360823,0.44030465,4719.3,4719.1,0.4721]
[1759771361022,0.44030465,4719.3,4719.0,0.1846]
[1759771361416,0.44030465,4719.3,4719.1,0.4721]
[1759771362014,0.44030465,4719.3,4719.0,0.1846]
[1759771362318,0.44030465,4719.3,4719.1,0.4721]
[1759771363416,0.93510465,4719.3,4719.1,0.4721]
[1759771363616,0.00166506,4719.4,4718.5,0.1846]
[1759771363617,0.93510465,4719.2,4718.6,0.4721]
[1759771363827,0.44030465,4719.1,4718.6,0.4721]
[1759771364020,0.44030465,4719.1,4718.5,0.1846]
[1759771364321,0.45310337,4719.0,4718.6,0.4721]
[1759771364520,0.00166506,4719.4,4718.6,0.4721]
[1759771364820,0.45306038,4719.3,4718.6,0.4721]
[1759771365021,0.45306038,4719.2,4718.7,40.8]
[1759771365222,0.45306038,4719.1,4718.6,0.4721]
[1759771365530,0.38125,4718.9,4718.1,0.4721]
[1759771365728,0.4948,4719.1,4718.1,0.4721]
[1759771365729,0.83432038,4718.8,4718.1,0.4721]
[1759771366021,0.45306038,4718.7,4718.1,0.4721]
[1759771366218,0.45306038,4718.6,4718.1,0.4721]
[1759771366420,0.4948,4718.4,4717.8,0.9673]
[1759771366619,0.87612,4718.0,4717.8,0.4952]
[1759771366820,0.38134,4717.8,4717.3,0.4721]
[1759771367122,0.4948,4717.9,4717.3,0.4721]
[1759771367718,0.6531,4719.0,4717.3,0.4721]
[1759771367920,0.38128,4718.6,4717.5,0.1901]
[1759771368124,3.25081691,4718.9,4717.6,0.4759]
[1759771368327,0.00166506,4719.4,4717.6,0.4759]
[1759771368620,0.00166506,4719.4,4718.3,0.4759]
[1759771369126,0.45297691,4719.3,4718.6,0.4759]
[1759771369323,0.45297691,4719.2,4718.6,0.4759]
[1759771369618,0.45297691,4719.1,4718.5,0.1901]
[1759771369823,0.00166506,4719.4,4718.5,0.1901]
[1759771369824,0.45297691,4719.0,4718.5,0.1901]
[1759771370020,0.45297691,4718.9,4718.5,0.1901]
[1759771370217,0.46528199,4718.8,4718.7,0.38126]
[1759771370419,0.00166506,4719.4,4719.1,0.4759]
[1759771370725,0.46524107,4719.3,4719.1,0.4759]
[1759771370926,0.46524107,4719.2,4719.1,0.4759]
[1759771371115,0.94584107,4719.2,4718.5,0.4759]
[1759771371319,0.38126,4718.9,4718.4,0.5041]
[1759771371519,0.86187,4718.7,4718.4,0.5041]
[1759771371826,0.94584107,4718.6,4718.4,0.5041]
[1759771372121,0.94584107,4718.5,4718.4,0.5041]
[1759771372427,0.94584107,4718.5,4717.6,0.4759]
[1759771372613,0.46524107,4718.4,4717.6,0.4759]
[1759771372818,0.38131,4718.2,4717.6,0.4759]
[1759771373016,0.46524107,4718.1,4718.0,0.666]
[1759771373520,0.46524107,4718.1,4718.0,0.4759]
[1759771373720,0.84651107,4718.7,4718.0,0.4759]
[1759771373915,0.4806,4718.3,4717.7,0.4898]
[1759771374120,0.38132,4718.0,4717.7,0.4898]
[1759771374322,0.4806,4717.8,4717.7,0.4898]
[1759771374930,5.94591512,4717.8,4717.7,0.38661767]
[1759771375130,0.95338,4717.7,4716.5,0.214]
[1759771375427,0.3814,4717.1,4716.2,0.4759]
[1759771375621,0.46531512,4717.0,4716.2,0.4759]
[1759771375821,0.46531512,4716.9,4716.2,0.4759]
[1759771376023,0.46531512,4716.8,4716.2,0.4759]
[1759771376225,0.4806,4716.8,4715.6,0.4759]
[1759771376420,0.1552,4717.0,4715.6,0.4759]
[1759771376421,0.4806,4716.2,4715.6,0.4759]
[1759771376727,0.46490226,4716.2,4716.1,0.4785474]